[Event "Titled Tuesday Blitz March 28 Early 2023"]
[White "lolliNOPE"]
[Black "Iskusnyh, Sergei"]
[BlackFideId "4120027"]
[WhiteElo "2085"]
[BlackElo "2492"]
[Result "0-1"]
[Round "10"]
[TimeControl "180+2"]
[Date "2023.03.28"]
[WhiteClock "0:00:34"]
[BlackClock "0:01:09"]

1. e4 {[%clk 0:02:57]}  e6 {[%clk 0:02:56]} 2. d4 {[%clk 0:02:57]}  d5 {[%clk 0:02:55]} 3. Nc3 {[%clk 0:02:57]}  Nf6 {[%clk 0:02:54]} 4. e5 {[%clk 0:02:56]}  Nfd7 {[%clk 0:02:55]} 5. f4 {[%clk 0:02:57]}  c5 {[%clk 0:02:55]} 6. Nf3 {[%clk 0:02:58]}  Nc6 {[%clk 0:02:56]} 7. Be3 {[%clk 0:02:58]}  Rb8 {[%clk 0:02:57]} 8. Qd2 {[%clk 0:02:57]}  Qa5 {[%clk 0:02:56]} 9. O-O-O {[%clk 0:02:30]}  b5 {[%clk 0:02:55]} 10. Kb1 {[%clk 0:02:22]}  b4 {[%clk 0:02:52]} 11. Nxd5 {[%clk 0:02:08]}  exd5 {[%clk 0:02:50]} 12. dxc5 {[%clk 0:02:09]}  b3 {[%clk 0:02:24]} 13. Qxa5 {[%clk 0:01:53]}  bxc2+ {[%clk 0:02:23]} 14. Kxc2 {[%clk 0:01:53]}  Nxa5 {[%clk 0:02:23]} 15. Rxd5 {[%clk 0:01:49]}  Bb7 {[%clk 0:02:23]} 16. Rd6 {[%clk 0:01:44]}  Bxd6 {[%clk 0:02:18]} 17. cxd6 {[%clk 0:01:45]}  O-O {[%clk 0:02:11]} 18. Bxa7 {[%clk 0:01:35]}  Be4+ {[%clk 0:02:06]} 19. Bd3 {[%clk 0:01:23]}  Rfc8+ {[%clk 0:02:05]} 20. Kd2 {[%clk 0:01:21]}  Rxb2+ {[%clk 0:02:00]} 21. Ke3 {[%clk 0:01:21]}  Bxd3 {[%clk 0:01:53]} 22. Kxd3 {[%clk 0:01:21]}  Rxa2 {[%clk 0:01:49]} 23. Bd4 {[%clk 0:01:02]}  Nb3 {[%clk 0:01:43]} 24. Be3 {[%clk 0:00:59]}  Nbc5+ {[%clk 0:01:40]} 25. Kd4 {[%clk 0:00:56]}  Ne6+ {[%clk 0:01:37]} 26. Ke4 {[%clk 0:00:55]}  Ra4+ {[%clk 0:01:32]} 27. Kf5 {[%clk 0:00:51]}  g6+ {[%clk 0:01:30]} 28. Kg4 {[%clk 0:00:50]}  Rc3 {[%clk 0:01:24]} 29. Bd2 {[%clk 0:00:45]}  Rd3 {[%clk 0:01:17]} 30. Rb1 {[%clk 0:00:39]}  Nxe5+ {[%clk 0:01:12]} 31. Nxe5 {[%clk 0:00:39]}  Rxd2 {[%clk 0:01:11]} 32. Rb8+ {[%clk 0:00:33]}  Kg7 {[%clk 0:01:11]} 33. d7 {[%clk 0:00:33]}  Rxf4+ {[%clk 0:01:10]} 34. Kg3 {[%clk 0:00:34]}  Rfd4 {[%clk 0:01:09]} 0-1


[Site "https://www.chess.com"]

[Event "Titled Tuesday Blitz March 28 Early 2023"]
[White "Ardila, Oscar Humberto"]
[Black "Akhmetov, Ayan"]
[WhiteFideId "4404742"]
[BlackFideId "13703706"]
[WhiteElo "1911"]
[BlackElo "2398"]
[Result "0-1"]
[Round "10"]
[TimeControl "180+2"]
[Date "2023.03.28"]
[WhiteClock "0:00:06"]
[BlackClock "0:00:11"]

1. d4 {[%clk 0:02:59]}  e6 {[%clk 0:03:00]} 2. c4 {[%clk 0:03:00]}  b6 {[%clk 0:03:00]} 3. Nc3 {[%clk 0:03:00]}  Bb7 {[%clk 0:03:00]} 4. Nf3 {[%clk 0:03:00]}  Nf6 {[%clk 0:02:57]} 5. e3 {[%clk 0:03:00]}  g6 {[%clk 0:02:58]} 6. Be2 {[%clk 0:03:00]}  Bg7 {[%clk 0:02:58]} 7. O-O {[%clk 0:03:00]}  O-O {[%clk 0:02:59]} 8. b3 {[%clk 0:03:00]}  c5 {[%clk 0:02:54]} 9. Bb2 {[%clk 0:02:58]}  cxd4 {[%clk 0:02:54]} 10. Nxd4 {[%clk 0:02:58]}  Nc6 {[%clk 0:02:52]} 11. Nxc6 {[%clk 0:02:51]}  Bxc6 {[%clk 0:02:51]} 12. Bf3 {[%clk 0:02:51]}  Qc8 {[%clk 0:02:25]} 13. Rc1 {[%clk 0:02:39]}  Qb7 {[%clk 0:02:24]} 14. Bxc6 {[%clk 0:02:36]}  dxc6 {[%clk 0:02:25]} 15. Qf3 {[%clk 0:02:32]}  Qc7 {[%clk 0:02:18]} 16. Rfd1 {[%clk 0:02:31]}  Rfd8 {[%clk 0:02:10]} 17. Ne2 {[%clk 0:02:30]}  Ng4 {[%clk 0:01:51]} 18. Qxg4 {[%clk 0:02:26]}  Bxb2 {[%clk 0:01:50]} 19. Rb1 {[%clk 0:02:25]}  Rxd1+ {[%clk 0:01:40]} 20. Rxd1 {[%clk 0:02:25]}  Rd8 {[%clk 0:01:40]} 21. Ng3 {[%clk 0:02:18]}  h5 {[%clk 0:01:34]} 22. Qe2 {[%clk 0:02:13]}  Be5 {[%clk 0:01:33]} 23. Nf1 {[%clk 0:02:11]}  Rd7 {[%clk 0:01:28]} 24. g3 {[%clk 0:02:10]}  Qd8 {[%clk 0:01:28]} 25. Rxd7 {[%clk 0:02:10]}  Qxd7 {[%clk 0:01:29]} 26. f4 {[%clk 0:02:02]}  Bd6 {[%clk 0:01:23]} 27. Kg2 {[%clk 0:02:03]}  Bc5 {[%clk 0:01:22]} 28. Qc2 {[%clk 0:01:57]}  e5 {[%clk 0:01:21]} 29. Qe4 {[%clk 0:01:34]}  exf4 {[%clk 0:01:19]} 30. exf4 {[%clk 0:01:28]}  h4 {[%clk 0:01:11]} 31. gxh4 {[%clk 0:01:18]}  a5 {[%clk 0:00:54]} 32. h5 {[%clk 0:01:17]}  gxh5 {[%clk 0:00:48]} 33. f5 {[%clk 0:01:13]}  Qd1 {[%clk 0:00:35]} 34. Qe8+ {[%clk 0:01:12]}  Kg7 {[%clk 0:00:30]} 35. Qe5+ {[%clk 0:01:11]}  Kh7 {[%clk 0:00:30]} 36. f6 {[%clk 0:00:39]}  Qc2+ {[%clk 0:00:26]} 37. Kh1 {[%clk 0:00:28]}  Qg6 {[%clk 0:00:24]} 38. Ng3 {[%clk 0:00:25]}  h4 {[%clk 0:00:24]} 39. Qh5+ {[%clk 0:00:21]}  Qxh5 {[%clk 0:00:24]} 40. Nxh5 {[%clk 0:00:22]}  Kg6 {[%clk 0:00:24]} 41. Nf4+ {[%clk 0:00:22]}  Kxf6 {[%clk 0:00:25]} 42. Kg2 {[%clk 0:00:22]}  Kf5 {[%clk 0:00:21]} 43. Kf3 {[%clk 0:00:22]}  Bd6 {[%clk 0:00:20]} 44. Ng2 {[%clk 0:00:22]}  h3 {[%clk 0:00:19]} 45. Ne3+ {[%clk 0:00:21]}  Kg5 {[%clk 0:00:17]} 46. a4 {[%clk 0:00:18]}  Bxh2 {[%clk 0:00:16]} 47. Nf1 {[%clk 0:00:17]}  Bf4 {[%clk 0:00:15]} 48. Kf2 {[%clk 0:00:16]}  Kf5 {[%clk 0:00:13]} 49. Kf3 {[%clk 0:00:16]}  Ke5 {[%clk 0:00:12]} 50. Kf2 {[%clk 0:00:09]}  c5 {[%clk 0:00:11]} 51. Kf3 {[%clk 0:00:09]}  f5 {[%clk 0:00:12]} 52. Kf2 {[%clk 0:00:09]}  h2 {[%clk 0:00:10]} 53. Kg2 {[%clk 0:00:09]}  Kd4 {[%clk 0:00:11]} 54. Nxh2 {[%clk 0:00:05]}  Bxh2 {[%clk 0:00:10]} 55. Kxh2 {[%clk 0:00:06]}  Kc3 {[%clk 0:00:11]} 0-1


[Site "https://www.chess.com"]

[Event "Titled Tuesday Blitz March 28 Early 2023"]
[White "Estrada Nieto, Julian"]
[Black "Levitan, Caleb Levi"]
[WhiteFideId "5101018"]
[BlackFideId "14332620"]
[WhiteElo "2176"]
[BlackElo "1963"]
[Result "1-0"]
[Round "10"]
[TimeControl "180+2"]
[Date "2023.03.28"]
[WhiteClock "0:00:26"]
[BlackClock "0:00:02"]

1. Nf3 {[%clk 0:03:00]}  d5 {[%clk 0:03:00]} 2. c4 {[%clk 0:03:00]}  e6 {[%clk 0:02:59]} 3. d4 {[%clk 0:03:00]}  Nf6 {[%clk 0:02:58]} 4. Nc3 {[%clk 0:02:58]}  a6 {[%clk 0:02:58]} 5. cxd5 {[%clk 0:02:58]}  exd5 {[%clk 0:02:58]} 6. Bg5 {[%clk 0:02:58]}  Be6 {[%clk 0:02:57]} 7. e3 {[%clk 0:02:58]}  Nbd7 {[%clk 0:02:56]} 8. Bd3 {[%clk 0:02:58]}  Bd6 {[%clk 0:02:53]} 9. O-O {[%clk 0:02:55]}  c6 {[%clk 0:02:51]} 10. Qb1 {[%clk 0:02:47]}  Qc7 {[%clk 0:02:39]} 11. Bh4 {[%clk 0:02:43]}  Bg4 {[%clk 0:02:35]} 12. Bg3 {[%clk 0:02:38]}  O-O {[%clk 0:02:14]} 13. e4 {[%clk 0:02:27]}  dxe4 {[%clk 0:01:59]} 14. Nxe4 {[%clk 0:02:27]}  Bxg3 {[%clk 0:01:58]} 15. hxg3 {[%clk 0:02:11]}  Nxe4 {[%clk 0:01:52]} 16. Bxe4 {[%clk 0:02:11]}  Nf6 {[%clk 0:01:47]} 17. Ne5 {[%clk 0:02:03]}  Be6 {[%clk 0:01:42]} 18. Bf3 {[%clk 0:02:00]}  Rad8 {[%clk 0:01:41]} 19. Rd1 {[%clk 0:01:59]}  Bd5 {[%clk 0:01:37]} 20. Qf5 {[%clk 0:01:56]}  Bxf3 {[%clk 0:01:35]} 21. gxf3 {[%clk 0:01:53]}  Qb6 {[%clk 0:01:26]} 22. Nc4 {[%clk 0:01:28]}  Qb4 {[%clk 0:01:23]} 23. Qc2 {[%clk 0:01:24]}  Nd5 {[%clk 0:01:08]} 24. Kg2 {[%clk 0:01:22]}  Rfe8 {[%clk 0:01:06]} 25. Rh1 {[%clk 0:01:11]}  g6 {[%clk 0:00:59]} 26. Rh4 {[%clk 0:01:07]}  Nf6 {[%clk 0:00:34]} 27. Rah1 {[%clk 0:00:53]}  Kg7 {[%clk 0:00:30]} 28. Qc1 {[%clk 0:00:49]}  h5 {[%clk 0:00:19]} 29. b3 {[%clk 0:00:36]}  Rd5 {[%clk 0:00:15]} 30. Ne3 {[%clk 0:00:32]}  Rxd4 {[%clk 0:00:13]} 31. Nf5+ {[%clk 0:00:28]}  gxf5 {[%clk 0:00:09]} 32. Qg5+ {[%clk 0:00:28]}  Kf8 {[%clk 0:00:09]} 33. Qxf6 {[%clk 0:00:27]}  Rxh4 {[%clk 0:00:09]} 34. Rxh4 {[%clk 0:00:27]}  Qd2 {[%clk 0:00:04]} 35. Rxh5 {[%clk 0:00:26]}  Re6 {[%clk 0:00:02]} 36. Rh8# {[%clk 0:00:26]} 1-0


[Site "https://www.chess.com"]

[Event "Titled Tuesday Blitz March 28 Early 2023"]
[White "Kozin, Yuri"]
[Black "Bogaudinov, Rushan"]
[WhiteFideId "4129920"]
[BlackFideId "4129288"]
[WhiteElo "2486"]
[BlackElo "1949"]
[Result "0-1"]
[Round "10"]
[TimeControl "180+2"]
[Date "2023.03.28"]
[WhiteClock "0:00:15"]
[BlackClock "0:01:39"]

1. e4 {[%clk 0:02:57]}  c5 {[%clk 0:02:59]} 2. Nf3 {[%clk 0:02:57]}  e6 {[%clk 0:03:00]} 3. d4 {[%clk 0:02:57]}  cxd4 {[%clk 0:03:00]} 4. Nxd4 {[%clk 0:02:58]}  a6 {[%clk 0:03:00]} 5. Nc3 {[%clk 0:02:58]}  b5 {[%clk 0:03:00]} 6. Bd3 {[%clk 0:02:53]}  Bb7 {[%clk 0:02:59]} 7. f4 {[%clk 0:02:51]}  Nf6 {[%clk 0:02:54]} 8. Qf3 {[%clk 0:02:45]}  b4 {[%clk 0:02:54]} 9. Nce2 {[%clk 0:02:43]}  d5 {[%clk 0:02:52]} 10. e5 {[%clk 0:02:43]}  Ne4 {[%clk 0:02:52]} 11. Ng3 {[%clk 0:02:41]}  Qh4 {[%clk 0:02:49]} 12. O-O {[%clk 0:02:31]}  Bc5 {[%clk 0:02:49]} 13. Be3 {[%clk 0:02:30]}  Nd2 {[%clk 0:02:31]} 14. Bxd2 {[%clk 0:02:24]}  Bxd4+ {[%clk 0:02:31]} 15. Kh1 {[%clk 0:02:25]}  Nc6 {[%clk 0:02:30]} 16. c3 {[%clk 0:02:12]}  Bc5 {[%clk 0:02:30]} 17. cxb4 {[%clk 0:01:58]}  Nxb4 {[%clk 0:02:28]} 18. Rac1 {[%clk 0:01:49]}  Qe7 {[%clk 0:02:19]} 19. Nh5 {[%clk 0:01:27]}  Nxd3 {[%clk 0:02:15]} 20. Qxd3 {[%clk 0:01:22]}  d4 {[%clk 0:02:08]} 21. f5 {[%clk 0:01:02]}  Qh4 {[%clk 0:02:04]} 22. Nxg7+ {[%clk 0:00:53]}  Kf8 {[%clk 0:01:53]} 23. Nxe6+ {[%clk 0:00:40]}  fxe6 {[%clk 0:01:52]} 24. fxe6+ {[%clk 0:00:41]}  Ke8 {[%clk 0:01:51]} 25. Rxc5 {[%clk 0:00:19]}  Rg8 {[%clk 0:01:51]} 26. Rg1 {[%clk 0:00:15]}  Qf2 {[%clk 0:01:41]} 27. Qh3 {[%clk 0:00:15]}  Rxg2 {[%clk 0:01:39]} 0-1


[Site "https://www.chess.com"]

[Event "Titled Tuesday Blitz March 28 Early 2023"]
[White "Pasti, Aron"]
[Black "Schut, Han"]
[WhiteFideId "785857"]
[BlackFideId "1005561"]
[WhiteElo "2173"]
[BlackElo "2024"]
[Result "0-1"]
[Round "10"]
[TimeControl "180+2"]
[Date "2023.03.28"]
[WhiteClock "0:01:37"]
[BlackClock "0:00:59"]

1. e4 {[%clk 0:03:00]}  c5 {[%clk 0:02:59]} 2. d4 {[%clk 0:03:00]}  cxd4 {[%clk 0:02:59]} 3. c3 {[%clk 0:03:00]}  g6 {[%clk 0:02:58]} 4. cxd4 {[%clk 0:03:00]}  d5 {[%clk 0:02:57]} 5. exd5 {[%clk 0:02:59]}  Nf6 {[%clk 0:02:56]} 6. Nc3 {[%clk 0:02:59]}  Nxd5 {[%clk 0:02:56]} 7. Bc4 {[%clk 0:02:59]}  Nb6 {[%clk 0:02:56]} 8. Bb3 {[%clk 0:02:58]}  Bg7 {[%clk 0:02:57]} 9. Nf3 {[%clk 0:02:58]}  O-O {[%clk 0:02:58]} 10. Bf4 {[%clk 0:02:59]}  Bg4 {[%clk 0:02:57]} 11. O-O {[%clk 0:02:55]}  Nc6 {[%clk 0:02:56]} 12. d5 {[%clk 0:02:54]}  Nd4 {[%clk 0:02:55]} 13. Re1 {[%clk 0:02:33]}  Bxf3 {[%clk 0:02:36]} 14. gxf3 {[%clk 0:02:34]}  Nxb3 {[%clk 0:02:37]} 15. axb3 {[%clk 0:02:34]}  Bxc3 {[%clk 0:02:35]} 16. bxc3 {[%clk 0:02:33]}  Qxd5 {[%clk 0:02:31]} 17. Rxe7 {[%clk 0:02:28]}  Qf5 {[%clk 0:02:07]} 18. Bg3 {[%clk 0:02:23]}  Rad8 {[%clk 0:01:59]} 19. Qe2 {[%clk 0:02:22]}  Nd5 {[%clk 0:01:59]} 20. Rxb7 {[%clk 0:02:14]}  Nxc3 {[%clk 0:01:58]} 21. Qe1 {[%clk 0:02:09]}  Qxf3 {[%clk 0:01:45]} 22. Re7 {[%clk 0:01:57]}  Rd3 {[%clk 0:01:17]} 23. Re3 {[%clk 0:01:47]}  Rxe3 {[%clk 0:01:14]} 24. Qxe3 {[%clk 0:01:45]}  Ne2+ {[%clk 0:01:06]} 25. Kf1 {[%clk 0:01:45]}  Nxg3+ {[%clk 0:00:58]} 26. hxg3 {[%clk 0:01:37]}  Qh1+ {[%clk 0:00:58]} 27. Ke2 {[%clk 0:01:37]}  Qxa1 {[%clk 0:00:59]} 0-1


[Site "https://www.chess.com"]

[Event "Titled Tuesday Blitz March 28 Early 2023"]
[White "Quirke, Jeffrey"]
[Black "Seletsky, Grigory"]
[WhiteFideId "2013029"]
[BlackFideId "14112191"]
[WhiteElo "2233"]
[BlackElo "2490"]
[Result "0-1"]
[Round "10"]
[TimeControl "180+2"]
[Date "2023.03.28"]
[WhiteClock "0:00:49"]
[BlackClock "0:01:50"]

1. e4 {[%clk 0:02:56]}  c5 {[%clk 0:02:58]} 2. Nc3 {[%clk 0:02:55]}  e6 {[%clk 0:02:58]} 3. Nge2 {[%clk 0:02:53]}  a6 {[%clk 0:02:58]} 4. g3 {[%clk 0:02:49]}  b5 {[%clk 0:02:57]} 5. Bg2 {[%clk 0:02:46]}  Bb7 {[%clk 0:02:58]} 6. d3 {[%clk 0:02:44]}  d6 {[%clk 0:02:58]} 7. O-O {[%clk 0:02:43]}  Nd7 {[%clk 0:02:58]} 8. f4 {[%clk 0:02:39]}  Qc7 {[%clk 0:02:58]} 9. f5 {[%clk 0:02:38]}  e5 {[%clk 0:02:57]} 10. a4 {[%clk 0:02:34]}  b4 {[%clk 0:02:56]} 11. Nd5 {[%clk 0:02:35]}  Bxd5 {[%clk 0:02:56]} 12. exd5 {[%clk 0:02:35]}  Be7 {[%clk 0:02:56]} 13. g4 {[%clk 0:02:28]}  h6 {[%clk 0:02:55]} 14. Ng3 {[%clk 0:02:28]}  Bh4 {[%clk 0:02:49]} 15. Nh5 {[%clk 0:02:21]}  Kf8 {[%clk 0:02:48]} 16. c4 {[%clk 0:02:04]}  Ngf6 {[%clk 0:02:45]} 17. Nxf6 {[%clk 0:01:38]}  Nxf6 {[%clk 0:02:42]} 18. h3 {[%clk 0:01:29]}  a5 {[%clk 0:02:35]} 19. Be3 {[%clk 0:01:28]}  Re8 {[%clk 0:02:23]} 20. Be4 {[%clk 0:01:26]}  Ke7 {[%clk 0:02:18]} 21. Bf2 {[%clk 0:01:15]}  Bxf2+ {[%clk 0:02:17]} 22. Kxf2 {[%clk 0:01:13]}  Kd8 {[%clk 0:02:17]} 23. b3 {[%clk 0:01:12]}  Qe7 {[%clk 0:02:16]} 24. Ke3 {[%clk 0:01:12]}  Nxe4 {[%clk 0:02:11]} 25. dxe4 {[%clk 0:01:09]}  Qh4 {[%clk 0:02:11]} 26. Qf3 {[%clk 0:01:07]}  h5 {[%clk 0:02:10]} 27. Rg1 {[%clk 0:00:58]}  hxg4 {[%clk 0:02:02]} 28. Rxg4 {[%clk 0:00:50]}  Qxh3 {[%clk 0:01:51]} 29. Rxg7 {[%clk 0:00:49]}  Qh6+ {[%clk 0:01:50]} 0-1


[Site "https://www.chess.com"]

[Event "Titled Tuesday Blitz March 28 Early 2023"]
[White "Novikova, Galina"]
[Black "Bongo Akanga Ndjila, Barthelemy"]
[WhiteFideId "4157095"]
[BlackFideId "10609431"]
[WhiteElo "1953"]
[BlackElo "1768"]
[Result "1-0"]
[Round "10"]
[TimeControl "180+2"]
[Date "2023.03.28"]
[WhiteClock "0:02:25"]
[BlackClock "0:01:54"]

1. e4 {[%clk 0:03:00]}  e6 {[%clk 0:02:50]} 2. Nf3 {[%clk 0:03:00]}  d5 {[%clk 0:02:49]} 3. e5 {[%clk 0:03:01]}  c5 {[%clk 0:02:48]} 4. b4 {[%clk 0:03:02]}  cxb4 {[%clk 0:02:45]} 5. a3 {[%clk 0:03:02]}  Nc6 {[%clk 0:02:42]} 6. axb4 {[%clk 0:03:02]}  Bxb4 {[%clk 0:02:42]} 7. c3 {[%clk 0:03:03]}  Ba5 {[%clk 0:02:38]} 8. d4 {[%clk 0:03:04]}  Bb6 {[%clk 0:02:37]} 9. Bd3 {[%clk 0:03:04]}  Nge7 {[%clk 0:02:37]} 10. O-O {[%clk 0:03:05]}  Bd7 {[%clk 0:02:37]} 11. Na3 {[%clk 0:03:05]}  h6 {[%clk 0:02:33]} 12. Nd2 {[%clk 0:03:03]}  a6 {[%clk 0:02:32]} 13. Qg4 {[%clk 0:03:03]}  g6 {[%clk 0:02:29]} 14. Rb1 {[%clk 0:02:59]}  h5 {[%clk 0:02:26]} 15. Qe2 {[%clk 0:02:54]}  Rb8 {[%clk 0:02:24]} 16. Nc2 {[%clk 0:02:53]}  Ba5 {[%clk 0:02:20]} 17. Bb2 {[%clk 0:02:51]}  Nf5 {[%clk 0:02:19]} 18. c4 {[%clk 0:02:43]}  dxc4 {[%clk 0:02:07]} 19. Nxc4 {[%clk 0:02:42]}  O-O {[%clk 0:02:00]} 20. Bxf5 {[%clk 0:02:37]}  exf5 {[%clk 0:01:56]} 21. d5 {[%clk 0:02:37]}  Ne7 {[%clk 0:01:54]} 22. e6 {[%clk 0:02:29]}  fxe6 {[%clk 0:01:53]} 23. dxe6 {[%clk 0:02:29]}  Bb5 {[%clk 0:01:54]} 24. Qe5 {[%clk 0:02:25]} 1-0


[Site "https://www.chess.com"]

[Event "Titled Tuesday Blitz March 28 Early 2023"]
[White "Sarkar, Justin"]
[Black "Winkels, Marcel"]
[WhiteFideId "2010011"]
[BlackFideId "1003887"]
[WhiteElo "2189"]
[BlackElo "1900"]
[Result "1-0"]
[Round "10"]
[TimeControl "180+2"]
[Date "2023.03.28"]
[WhiteClock "0:01:47"]
[BlackClock "0:02:06"]

1. e4 {[%clk 0:02:55]}  c5 {[%clk 0:02:59]} 2. Nf3 {[%clk 0:02:55]}  d6 {[%clk 0:03:00]} 3. d4 {[%clk 0:02:55]}  cxd4 {[%clk 0:03:00]} 4. Nxd4 {[%clk 0:02:54]}  Nf6 {[%clk 0:03:01]} 5. Nc3 {[%clk 0:02:53]}  a6 {[%clk 0:03:02]} 6. Bd2 {[%clk 0:02:52]}  e5 {[%clk 0:02:56]} 7. Nf5 {[%clk 0:02:48]}  Bxf5 {[%clk 0:02:54]} 8. exf5 {[%clk 0:02:48]}  d5 {[%clk 0:02:55]} 9. Bg5 {[%clk 0:02:44]}  d4 {[%clk 0:02:54]} 10. Ne4 {[%clk 0:02:41]}  Be7 {[%clk 0:02:53]} 11. Bxf6 {[%clk 0:02:39]}  Bxf6 {[%clk 0:02:53]} 12. Bd3 {[%clk 0:02:36]}  O-O {[%clk 0:02:49]} 13. O-O {[%clk 0:02:35]}  Nc6 {[%clk 0:02:45]} 14. a3 {[%clk 0:02:29]}  Be7 {[%clk 0:02:28]} 15. Qh5 {[%clk 0:02:22]}  f6 {[%clk 0:02:27]} 16. f4 {[%clk 0:02:00]}  Rc8 {[%clk 0:02:17]} 17. Rf3 {[%clk 0:01:55]}  exf4 {[%clk 0:02:11]} 18. Bc4+ {[%clk 0:01:49]}  Kh8 {[%clk 0:02:06]} 19. Qxh7+ {[%clk 0:01:47]} 1-0


[Site "https://www.chess.com"]

[Event "Titled Tuesday Blitz March 28 Early 2023"]
[White "Ramirez, Maria Eugenia"]
[Black "Bashirli, Saadat"]
[WhiteFideId "3301680"]
[BlackFideId "13429990"]
[WhiteElo "1842"]
[BlackElo "1408"]
[Result "1-0"]
[Round "10"]
[TimeControl "180+2"]
[Date "2023.03.28"]
[WhiteClock "0:00:54"]
[BlackClock "0:01:06"]

1. e4 {[%clk 0:03:00]}  c5 {[%clk 0:03:00]} 2. c3 {[%clk 0:03:00]}  Nf6 {[%clk 0:02:56]} 3. e5 {[%clk 0:03:00]}  Nd5 {[%clk 0:02:55]} 4. g3 {[%clk 0:03:01]}  Nc6 {[%clk 0:02:52]} 5. Nf3 {[%clk 0:03:00]}  g6 {[%clk 0:02:48]} 6. Bg2 {[%clk 0:02:53]}  Bg7 {[%clk 0:02:47]} 7. O-O {[%clk 0:02:51]}  O-O {[%clk 0:02:46]} 8. Re1 {[%clk 0:02:50]}  d6 {[%clk 0:02:44]} 9. exd6 {[%clk 0:02:49]}  Qxd6 {[%clk 0:02:45]} 10. Na3 {[%clk 0:02:47]}  Bg4 {[%clk 0:02:44]} 11. h3 {[%clk 0:02:44]}  Bxf3 {[%clk 0:02:40]} 12. Bxf3 {[%clk 0:02:44]}  e6 {[%clk 0:02:40]} 13. Nc4 {[%clk 0:02:41]}  Qd7 {[%clk 0:02:40]} 14. Ne3 {[%clk 0:02:40]}  Nxe3 {[%clk 0:02:39]} 15. dxe3 {[%clk 0:02:40]}  Qxd1 {[%clk 0:02:38]} 16. Rxd1 {[%clk 0:02:39]}  Rad8 {[%clk 0:02:39]} 17. Bd2 {[%clk 0:02:33]}  Ne5 {[%clk 0:02:35]} 18. Bxb7 {[%clk 0:02:24]}  Nc4 {[%clk 0:02:35]} 19. Be1 {[%clk 0:02:18]}  Nxb2 {[%clk 0:02:34]} 20. Rxd8 {[%clk 0:02:11]}  Rxd8 {[%clk 0:02:35]} 21. Rb1 {[%clk 0:02:11]}  Na4 {[%clk 0:02:32]} 22. c4 {[%clk 0:02:05]}  Nb6 {[%clk 0:02:31]} 23. Ba6 {[%clk 0:01:50]}  Rd3 {[%clk 0:02:22]} 24. Ba5 {[%clk 0:01:48]}  Ra3 {[%clk 0:02:13]} 25. Bxb6 {[%clk 0:01:44]}  axb6 {[%clk 0:02:14]} 26. Rxb6 {[%clk 0:01:40]}  Rxa2 {[%clk 0:02:14]} 27. Rb8+ {[%clk 0:01:39]}  Bf8 {[%clk 0:02:14]} 28. Bb5 {[%clk 0:01:38]}  Rb2 {[%clk 0:02:12]} 29. Rc8 {[%clk 0:01:31]}  Rc2 {[%clk 0:02:07]} 30. Rc7 {[%clk 0:01:27]}  Rc1+ {[%clk 0:02:06]} 31. Kg2 {[%clk 0:01:27]}  Rc2 {[%clk 0:02:07]} 32. Be8 {[%clk 0:01:23]}  Rxc4 {[%clk 0:01:58]} 33. Bxf7+ {[%clk 0:01:21]}  Kh8 {[%clk 0:01:58]} 34. Bxe6 {[%clk 0:01:20]}  Rc1 {[%clk 0:01:57]} 35. Rc8 {[%clk 0:01:19]}  Kg7 {[%clk 0:01:56]} 36. Rc7+ {[%clk 0:01:19]}  Kf6 {[%clk 0:01:52]} 37. Bd5 {[%clk 0:01:08]}  Be7 {[%clk 0:01:52]} 38. f4 {[%clk 0:01:02]}  Rd1 {[%clk 0:01:46]} 39. e4 {[%clk 0:00:59]}  h5 {[%clk 0:01:17]} 40. g4 {[%clk 0:00:58]}  Bd6 {[%clk 0:01:06]} 41. Rf7# {[%clk 0:00:54]} 1-0


[Site "https://www.chess.com"]

[Event "Titled Tuesday Blitz March 28 Early 2023"]
[White "Thiel, Thomas"]
[Black "Kuchava, Ana"]
[WhiteFideId "4615964"]
[BlackFideId "13605348"]
[WhiteElo "2216"]
[BlackElo "2001"]
[Result "1/2-1/2"]
[Round "10"]
[TimeControl "180+2"]
[Date "2023.03.28"]
[WhiteClock "0:01:48"]
[BlackClock "0:02:04"]

1. e4 {[%clk 0:02:55]}  c5 {[%clk 0:02:58]} 2. Nc3 {[%clk 0:02:50]}  Nc6 {[%clk 0:02:58]} 3. Bb5 {[%clk 0:02:49]}  Nd4 {[%clk 0:02:57]} 4. Bc4 {[%clk 0:02:49]}  e6 {[%clk 0:02:52]} 5. Nge2 {[%clk 0:02:48]}  a6 {[%clk 0:02:46]} 6. d3 {[%clk 0:02:46]}  b5 {[%clk 0:02:37]} 7. Bb3 {[%clk 0:02:46]}  Bb7 {[%clk 0:02:36]} 8. O-O {[%clk 0:02:44]}  Nxb3 {[%clk 0:02:33]} 9. axb3 {[%clk 0:02:45]}  d6 {[%clk 0:02:33]} 10. f4 {[%clk 0:02:43]}  Nf6 {[%clk 0:02:31]} 11. f5 {[%clk 0:02:42]}  Be7 {[%clk 0:02:30]} 12. fxe6 {[%clk 0:02:41]}  fxe6 {[%clk 0:02:30]} 13. Bg5 {[%clk 0:02:34]}  O-O {[%clk 0:02:28]} 14. Nf4 {[%clk 0:02:32]}  Qd7 {[%clk 0:02:27]} 15. Bxf6 {[%clk 0:02:21]}  Bxf6 {[%clk 0:02:26]} 16. Qg4 {[%clk 0:02:21]}  Bd4+ {[%clk 0:02:23]} 17. Kh1 {[%clk 0:02:18]}  Rf6 {[%clk 0:02:23]} 18. Nh5 {[%clk 0:02:16]}  Rg6 {[%clk 0:02:23]} 19. Qh3 {[%clk 0:02:09]}  Re8 {[%clk 0:02:12]} 20. Nf4 {[%clk 0:02:05]}  Rf6 {[%clk 0:02:10]} 21. Nh5 {[%clk 0:02:01]}  Rh6 {[%clk 0:02:07]} 22. Qg4 {[%clk 0:01:51]}  Rg6 {[%clk 0:02:05]} 23. Qh3 {[%clk 0:01:50]}  Rh6 {[%clk 0:02:03]} 24. Qg4 {[%clk 0:01:48]}  Rg6 {[%clk 0:02:03]} 25. Qh3 {[%clk 0:01:48]}  Rh6 {[%clk 0:02:04]} 1/2-1/2


[Site "https://www.chess.com"]